[Event "EIRCC 2019"]
[Site "Tallinn"]
[Date "2019.12.05"]
[Round "5.9"]
[White "Andriasian, Zaven"]
[Black "Nazaretyan, Tigran"]
[Result "1-0"]
[ECO "B31"]
[WhiteElo "2633"]
[BlackElo "2377"]
[Annotator "RC"]
[PlyCount "113"]
[EventDate "2019.12.05"]
[EventType "swiss"]
[EventCountry "EST"]
[SourceTitle "playchess.com"]
[Source "ChessBase"]
[SourceQuality "1"]
[TimeControl "900+10"]

1. e4 {[%emt 0:00:00]} c5 {[%emt 0:00:00]} 2. Nf3 {[%emt 0:00:00]} Nc6 {[%emt 0:00:00]} 3. Bb5 {[%emt 0:00:00]} g6 {[%emt 0:00:05]} 4. Bxc6 {[%emt 0:00:00]} dxc6 {[%emt 0:00:02]} 5. h3 {[%emt 0:00:00]} Bg7 {[%emt 0:00:02]} 6. d3 {[%emt 0:00:00]} Nf6 {[%emt 0:00:07]} 7. Nc3 {[%emt 0:00:01]} Nd7 {[%emt 0:00:23]} 8. Be3 {[%emt 0:00:02]} e5 {[%emt 0:00:03]} 9. Qd2 {[%emt 0:00:12]} h6 {[%emt 0:00:36]} 10. Nh2 {[%emt 0:00:22]} Qe7 {[%emt 0:02:20]} 11. O-O {[%emt 0:00:03]} Nf8 {[%emt 0:00:03]} 12. f4 {[%emt 0:00:03]} exf4 {[%emt 0:00:02]} 13. Bxf4 {[%emt 0:00:01]} Ne6 {[%emt 0:00:01]} 14. Bg3 {[%emt 0:00:02]} Qg5 {[%emt 0:00:03]} 15. Qe1 {[%emt 0:00:04]} Nd4 {[%emt 0:00:02]} 16. Qf2 {[%emt 0:00:10]} O-O {[%emt 0:01:04]} 17. Bd6 {[%emt 0:01:11]} Bxh3 {[%emt 0:00:27]} 18. Bf4 {[%emt 0:00:02]} Qxg2+ {[%emt 0:00:10]} 19. Qxg2 {[%emt 0:00:01]} Bxg2 {[%emt 0:00:02]} 20. Kxg2 {[%emt 0:00:02]} Nxc2 {[%emt 0:00:02]} 21. Rad1 {[%emt 0:00:37]} Rad8 {[%emt 0:00:20]} 22. Rf2 {[%emt 0:01:02]} Nd4 {[%emt 0:01:24]} 23. Nf3 {[%emt 0:00:05]} f5 {[%emt 0:01:06]} 24. exf5 {[%emt 0:02:27]} Nxf5 {[%emt 0:01:42]} 25. Bc1 {[%emt 0:03:18]} g5 {[%emt 0:00:54]} 26. Ne2 {[%emt 0:00:12]} Rd5 {[%emt 0:02:31]} 27. b3 {[%emt 0:02:19]} b5 {[%emt 0:01:09]} 28. Rff1 {[%emt 0:01:45]} Re8 {[%emt 0:00:25]} 29. Ng3 {[%emt 0:00:16]} Ne3+ {[%emt 0:00:20]} 30. Bxe3 {[%emt 0:00:05]} Rxe3 {[%emt 0:00:02]} 31. Rfe1 {[%emt 0:00:46]} Rexd3 {[%emt 0:00:42]} 32. Rxd3 {[%emt 0:00:04]} Rxd3 {[%emt 0:00:02]} 33. Nf5 {[%emt 0:00:24]} Bf8 {[%emt 0:00:49]} 34. Re6 {[%emt 0:00:42]} c4 {[%emt 0:01:34]} 35. bxc4 {[%emt 0:00:58]} bxc4 {[%emt 0:00:03]} 36. Rxc6 {[%emt 0:01:51]} Rd5 {[%emt 0:00:35]} 37. Ne3 {[%emt 0:00:33]} Ra5 {[%emt 0:00:06]} 38. Nxc4 {[%emt 0:00:10]} Rxa2+ {[%emt 0:00:08]} 39. Kg3 {[%emt 0:00:02]} a5 {[%emt 0:00:26]} 40. Kg4 {[%emt 0:00:14]} a4 {[%emt 0:00:14]} 41. Ra6 {[%emt 0:00:40]} a3 {[%emt 0:00:02]} 42. Nfe5 {[%emt 0:00:17]} Ra1 {[%emt 0:00:25]} 43. Kf5 {[%emt 0:00:17]} Kh7 {[%emt 0:00:16]} 44. Ra7+ {[%emt 0:00:38]} Bg7 {[%emt 0:00:04]} 45. Nxa3 {[%emt 0:00:09]} Rf1+ {[%emt 0:00:06]} 46. Ke6 {[%emt 0:00:08]} h5 {[%emt 0:00:17]} 47. Nac4 {[%emt 0:00:04]} h4 {[%emt 0:00:04]} 48. Ne3 {[%emt 0:00:10]} Rf6+ {[%emt 0:00:14]} 49. Kd5 {[%emt 0:00:01]} h3 {[%emt 0:01:10]} 50. N3g4 {[%emt 0:00:02]} Rb6 {[%emt 0:00:07]} 51. Ke4 {[%emt 0:00:11]} Kg8 {[%emt 0:00:16]} 52. Nd7 {[%emt 0:00:21]} Rb2 {[%emt 0:00:14]} 53. Kf5 {[%emt 0:00:21]} h2 {[%emt 0:00:10]} 54. Ndf6+ {[%emt 0:00:02]} Bxf6 {[%emt 0:00:06]} 55. Nxf6+ {[%emt 0:00:01]} Kf8 {[%emt 0:00:09]} 56. Kg6 {[%emt 0:00:01]} Rb7 {[%emt 0:00:23]} 57. Rxb7 {[%emt 0:00:01]} 1-0

[Event "EIRCC 2019"]
[Site "Tallinn"]
[Date "2019.12.05"]
[Round "5.10"]
[White "Van Foreest, Lucas"]
[Black "Aleksandrov, Aleksej"]
[Result "1-0"]
[ECO "C47"]
[WhiteElo "2399"]
[BlackElo "2576"]
[Annotator "ChessBase"]
[PlyCount "73"]
[EventDate "2019.12.05"]
[EventType "swiss"]
[EventCountry "EST"]
[SourceTitle "playchess.com"]
[Source "ChessBase"]
[SourceQuality "1"]
[TimeControl "900+10"]

1. e4 e5 {[%emt 0:00:40]} 2. Nf3 {[%emt 0:00:00]} Nc6 {[%emt 0:00:07]} 3. Nc3 {[%emt 0:00:00]} Nf6 {[%emt 0:00:01]} 4. d4 {[%emt 0:00:00]} exd4 {[%emt 0:00:03]} 5. Nxd4 {[%emt 0:00:00]} Bb4 {[%emt 0:00:01]} 6. Nxc6 {[%emt 0:00:00]} bxc6 {[%emt 0:00:01]} 7. Bd3 {[%emt 0:00:00]} O-O {[%emt 0:00:02]} 8. O-O {[%emt 0:00:00]} d5 {[%emt 0:00:01]} 9. Bd2 {[%emt 0:00:00]} Bg4 {[%emt 0:00:20]} 10. f3 {[%emt 0:00:01]} Bh5 {[%emt 0:00:01]} 11. e5 {[%emt 0:00:28]} Nd7 {[%emt 0:00:09]} 12. Qe1 {[%emt 0:00:01]} Bg6 {[%emt 0:01:32]} 13. f4 {[%emt 0:00:02]} Bxd3 {[%emt 0:00:08]} 14. cxd3 {[%emt 0:00:02]} Bc5+ {[%emt 0:00:19]} 15. Kh1 {[%emt 0:00:04]} Re8 {[%emt 0:00:05]} 16. Rc1 {[%emt 0:00:19]} Bb6 {[%emt 0:00:13]} 17. Na4 {[%emt 0:04:15]} c5 {[%emt 0:00:05]} 18. b4 {[%emt 0:00:03]} Qe7 {[%emt 0:02:09]} 19. bxc5 {[%emt 0:00:33]} Nxc5 {[%emt 0:00:01]} 20. Nxc5 {[%emt 0:00:12]} Bxc5 {[%emt 0:00:01]} 21. Qg3 {[%emt 0:00:44]} Bd4 {[%emt 0:00:32]} 22. Be3 {[%emt 0:00:18]} Bxe3 {[%emt 0:00:09]} 23. Qxe3 {[%emt 0:00:01]} f6 {[%emt 0:01:24]} 24. d4 {[%emt 0:00:02]} fxe5 {[%emt 0:00:09]} 25. dxe5 {[%emt 0:00:15]} Rab8 {[%emt 0:01:51]} 26. Qxa7 {[%emt 0:00:06]} Rec8 {[%emt 0:00:05]} 27. Qd4 {[%emt 0:00:26]} Rb5 {[%emt 0:00:19]} 28. f5 {[%emt 0:00:04]} Qb4 {[%emt 0:00:14]} 29. Qd3 {[%emt 0:00:17]} Rc5 {[%emt 0:00:29]} 30. f6 {[%emt 0:00:17]} Rf8 {[%emt 0:01:23]} 31. Rxc5 {[%emt 0:01:34]} Qxc5 {[%emt 0:00:02]} 32. Qg3 {[%emt 0:00:34]} Rf7 {[%emt 0:00:49]} 33. Qg4 {[%emt 0:00:55]} h6 {[%emt 0:01:56]} 34. Qc8+ {[%emt 0:00:03]} Kh7 {[%emt 0:00:23]} 35. Qe6 {[%emt 0:00:50]} Qc4 {[%emt 0:00:50]} 36. Rg1 {[%emt 0:00:01]} Kg6 {[%emt 0:00:17]} 37. Qe8 {[%emt 0:00:02]} 1-0

[Event "EIRCC 2019"]
[Site "Tallinn"]
[Date "2019.12.05"]
[Round "5.11"]
[White "Krupenski, Juri"]
[Black "Babula, Vlastimil"]
[Result "1-0"]
[ECO "A40"]
[WhiteElo "2373"]
[BlackElo "2559"]
[Annotator "ChessBase"]
[PlyCount "93"]
[EventDate "2019.12.05"]
[EventType "swiss"]
[EventCountry "EST"]
[SourceTitle "playchess.com"]
[Source "ChessBase"]
[SourceQuality "1"]
[TimeControl "900+10"]

1. d4 {[%emt 0:00:00]} Nf6 {[%emt 0:00:00]} 2. c4 {[%emt 0:00:00]} e6 {[%emt 0:00:00]} 3. g3 {[%emt 0:00:00]} Bb4+ {[%emt 0:00:04]} 4. Bd2 {[%emt 0:00:06]} a5 {[%emt 0:00:01]} 5. Bg2 {[%emt 0:00:15]} d6 {[%emt 0:00:02]} 6. Nc3 {[%emt 0:01:20]} e5 {[%emt 0:00:12]} 7. a3 {[%emt 0:00:24]} Bxc3 {[%emt 0:00:10]} 8. Bxc3 {[%emt 0:00:01]} e4 {[%emt 0:00:30]} 9. d5 {[%emt 0:00:14]} Nbd7 {[%emt 0:00:10]} 10. Nh3 {[%emt 0:02:09]} O-O {[%emt 0:00:37]} 11. O-O {[%emt 0:00:14]} Qe7 {[%emt 0:00:26]} 12. f4 {[%emt 0:01:19]} Nc5 {[%emt 0:00:48]} 13. b4 {[%emt 0:00:20]} Na6 {[%emt 0:00:52]} 14. e3 {[%emt 0:00:49]} Ng4 {[%emt 0:01:34]} 15. f5 {[%emt 0:01:35]} Nf6 {[%emt 0:02:56]} 16. g4 {[%emt 0:00:24]} h6 {[%emt 0:00:01]} 17. g5 {[%emt 0:02:15]} hxg5 {[%emt 0:00:04]} 18. Nxg5 {[%emt 0:00:01]} Bd7 {[%emt 0:00:24]} 19. Qe1 {[%emt 0:00:15]} Nh5 {[%emt 0:05:49]} 20. Qh4 {[%emt 0:01:53]} f6 {[%emt 0:00:03]} 21. Ne6 {[%emt 0:00:32]} Be8 {[%emt 0:00:12]} 22. Bxe4 {[%emt 0:00:18]} Kh7 {[%emt 0:00:21]} 23. Nxf8+ {[%emt 0:01:21]} Qxf8 {[%emt 0:00:01]} 24. Bf3 {[%emt 0:00:10]} Qh8 {[%emt 0:00:35]} 25. Bxf6 {[%emt 0:00:34]} gxf6 {[%emt 0:00:07]} 26. Bxh5 {[%emt 0:00:02]} Kg7 {[%emt 0:00:29]} 27. Qg3+ {[%emt 0:00:09]} Kf8 {[%emt 0:00:01]} 28. Bg6 {[%emt 0:00:07]} Bxg6 {[%emt 0:00:55]} 29. fxg6 {[%emt 0:00:01]} Kg7 {[%emt 0:00:00]} 30. Rf4 {[%emt 0:00:06]} axb4 {[%emt 0:00:11]} 31. axb4 {[%emt 0:00:09]} Qh5 {[%emt 0:00:31]} 32. Qg4 {[%emt 0:00:26]} Qxg4+ {[%emt 0:00:11]} 33. Rxg4 {[%emt 0:00:01]} Re8 {[%emt 0:00:00]} 34. c5 {[%emt 0:00:54]} dxc5 {[%emt 0:00:11]} 35. b5 {[%emt 0:00:11]} Nb4 {[%emt 0:00:07]} 36. e4 {[%emt 0:00:26]} Nd3 {[%emt 0:00:35]} 37. Ra7 {[%emt 0:00:29]} Rb8 {[%emt 0:00:07]} 38. h4 {[%emt 0:00:12]} c4 {[%emt 0:00:08]} 39. Ra4 {[%emt 0:00:17]} Ne5 {[%emt 0:00:10]} 40. Rg3 {[%emt 0:00:01]} Rh8 {[%emt 0:00:58]} 41. Ra7 {[%emt 0:00:02]} Rb8 {[%emt 0:00:15]} 42. h5 {[%emt 0:00:01]} Nd3 {[%emt 0:00:01]} 43. Ra4 {[%emt 0:00:18]} Ne5 {[%emt 0:00:07]} 44. Kf1 {[%emt 0:00:11]} Rh8 {[%emt 0:00:16]} 45. Ra7 {[%emt 0:00:18]} Rxh5 {[%emt 0:00:02]} 46. Rxb7 {[%emt 0:00:02]} Rh1+ {[%emt 0:00:05]} 47. Kg2 {[%emt 0:00:10]} 1-0

[Event "EIRCC 2019"]
[Site "Tallinn"]
[Date "2019.12.05"]
[Round "5.12"]
[White "Nguyen, Thai Dai Van"]
[Black "Stupak, Kirill"]
[Result "1/2-1/2"]
[ECO "E36"]
[WhiteElo "2364"]
[BlackElo "2552"]
[Annotator "ChessBase"]
[PlyCount "69"]
[EventDate "2019.12.05"]
[EventType "swiss"]
[EventCountry "EST"]
[SourceTitle "playchess.com"]
[Source "ChessBase"]
[SourceQuality "1"]
[TimeControl "900+10"]

1. d4 {[%emt 0:00:00]} Nf6 {[%emt 0:00:22]} 2. c4 {[%emt 0:00:00]} e6 {[%emt 0:00:01]} 3. Nc3 {[%emt 0:00:00]} Bb4 {[%emt 0:00:20]} 4. Qc2 {[%emt 0:00:00]} d5 {[%emt 0:00:13]} 5. a3 {[%emt 0:00:01]} Bxc3+ {[%emt 0:00:03]} 6. Qxc3 {[%emt 0:00:01]} O-O {[%emt 0:00:02]} 7. Nf3 {[%emt 0:00:20]} dxc4 {[%emt 0:00:25]} 8. Qxc4 {[%emt 0:00:02]} b6 {[%emt 0:00:01]} 9. Bg5 {[%emt 0:00:02]} Ba6 {[%emt 0:00:23]} 10. Qa4 {[%emt 0:02:29]} Qd7 {[%emt 0:03:45]} 11. Qxd7 {[%emt 0:00:06]} Nbxd7 {[%emt 0:00:09]} 12. Rc1 {[%emt 0:07:57]} c5 {[%emt 0:00:09]} 13. Bxf6 {[%emt 0:00:03]} gxf6 {[%emt 0:00:45]} 14. e3 {[%emt 0:00:02]} Bxf1 {[%emt 0:00:40]} 15. Rxf1 {[%emt 0:00:04]} Rfc8 {[%emt 0:05:20]} 16. Ke2 {[%emt 0:00:23]} Kf8 {[%emt 0:02:19]} 17. Rfd1 {[%emt 0:00:38]} Ke8 {[%emt 0:00:02]} 18. dxc5 {[%emt 0:01:35]} Nxc5 {[%emt 0:01:05]} 19. Nd4 {[%emt 0:00:48]} a6 {[%emt 0:00:35]} 20. Rc2 {[%emt 0:00:35]} Na4 {[%emt 0:00:34]} 21. Rdc1 {[%emt 0:00:17]} Rxc2+ {[%emt 0:00:18]} 22. Rxc2 {[%emt 0:00:02]} Kd7 {[%emt 0:00:03]} 23. b3 {[%emt 0:00:25]} Nc5 {[%emt 0:00:01]} 24. b4 {[%emt 0:00:21]} Ne4 {[%emt 0:00:22]} 25. f3 {[%emt 0:00:15]} Nd6 {[%emt 0:00:01]} 26. a4 {[%emt 0:00:32]} e5 {[%emt 0:00:31]} 27. Nb3 {[%emt 0:00:06]} Rc8 {[%emt 0:00:12]} 28. Rxc8 Kxc8 {[%emt 0:00:06]} 29. Kd3 {[%emt 0:00:14]} Kd7 {[%emt 0:00:10]} 30. Nd2 {[%emt 0:00:12]} f5 {[%emt 0:00:24]} 31. Nc4 {[%emt 0:01:26]} Nxc4 {[%emt 0:00:04]} 32. Kxc4 {[%emt 0:00:01]} Kc6 {[%emt 0:00:06]} 33. b5+ {[%emt 0:00:30]} axb5+ {[%emt 0:00:01]} 34. axb5+ {[%emt 0:00:01]} Kd6 {[%emt 0:00:01]} 35. e4 {[%emt 0:00:43]} 1/2-1/2

[Event "EIRCC 2019"]
[Site "Tallinn"]
[Date "2019.12.05"]
[Round "5.13"]
[White "Ruck, Robert"]
[Black "Seeman, Tarvo"]
[Result "0-1"]
[ECO "E62"]
[WhiteElo "2551"]
[BlackElo "2325"]
[Annotator "ChessBase"]
[PlyCount "120"]
[EventDate "2019.12.05"]
[EventType "swiss"]
[EventCountry "EST"]
[SourceTitle "playchess.com"]
[Source "ChessBase"]
[SourceQuality "1"]
[TimeControl "900+10"]

1. Nf3 {[%emt 0:00:00]} Nf6 {[%emt 0:00:00]} 2. c4 {[%emt 0:00:00]} g6 {[%emt 0:00:00]} 3. d4 {[%emt 0:00:00]} Bg7 {[%emt 0:00:00]} 4. g3 {[%emt 0:00:00]} O-O {[%emt 0:00:03]} 5. Bg2 {[%emt 0:00:01]} d6 {[%emt 0:00:44]} 6. O-O {[%emt 0:00:04]} Nc6 {[%emt 0:00:33]} 7. Nc3 {[%emt 0:00:05]} e5 {[%emt 0:00:02]} 8. d5 {[%emt 0:00:38]} Nb8 {[%emt 0:00:04]} 9. e4 {[%emt 0:00:05]} a5 {[%emt 0:00:02]} 10. Ne1 {[%emt 0:00:03]} Na6 {[%emt 0:00:05]} 11. Nd3 {[%emt 0:00:04]} Bd7 {[%emt 0:01:04]} 12. f4 {[%emt 0:01:39]} exf4 {[%emt 0:00:10]} 13. gxf4 {[%emt 0:00:02]} Nh5 {[%emt 0:00:30]} 14. Be3 {[%emt 0:00:19]} Nb4 {[%emt 0:00:44]} 15. Ne1 {[%emt 0:03:26]} Qe7 {[%emt 0:01:11]} 16. Bf3 {[%emt 0:03:27]} f5 {[%emt 0:02:05]} 17. Bxh5 {[%emt 0:02:20]} gxh5 {[%emt 0:00:11]} 18. e5 {[%emt 0:00:10]} dxe5 {[%emt 0:00:37]} 19. Qxh5 {[%emt 0:00:06]} Ra6 {[%emt 0:03:03]} 20. Kh1 {[%emt 0:01:04]} Rg6 {[%emt 0:02:08]} 21. a3 {[%emt 0:02:23]} Na6 {[%emt 0:04:09]} 22. Ng2 {[%emt 0:00:15]} e4 {[%emt 0:00:13]} 23. Rg1 {[%emt 0:00:40]} Be8 {[%emt 0:00:13]} 24. Qe2 {[%emt 0:00:13]} Nc5 {[%emt 0:00:04]} 25. Raf1 {[%emt 0:00:16]} Nd3 {[%emt 0:00:03]} 26. Ne1 {[%emt 0:00:06]} Nxe1 {[%emt 0:00:08]} 27. Qxe1 {[%emt 0:00:14]} Rxg1+ {[%emt 0:00:12]} 28. Rxg1 {[%emt 0:00:01]} Bh5 {[%emt 0:00:07]} 29. Rg3 {[%emt 0:00:09]} Bf3+ {[%emt 0:00:09]} 30. Kg1 {[%emt 0:00:01]} Rf6 {[%emt 0:00:10]} 31. Qf2 {[%emt 0:01:13]} Rg6 {[%emt 0:00:02]} 32. Kf1 {[%emt 0:00:10]} Bxc3 {[%emt 0:00:07]} 33. bxc3 {[%emt 0:00:06]} Qxa3 {[%emt 0:00:02]} 34. Rxg6+ {[%emt 0:00:50]} hxg6 {[%emt 0:00:01]} 35. Qd2 {[%emt 0:00:01]} Qa1+ {[%emt 0:00:21]} 36. Kf2 {[%emt 0:00:02]} Qd1 {[%emt 0:00:18]} 37. Qxd1 {[%emt 0:00:27]} Bxd1 {[%emt 0:00:02]} 38. c5 {[%emt 0:00:01]} Kf7 {[%emt 0:00:35]} 39. Bc1 {[%emt 0:00:16]} Bb3 {[%emt 0:00:03]} 40. d6 {[%emt 0:00:01]} cxd6 {[%emt 0:00:20]} 41. cxd6 {[%emt 0:00:01]} Ke6 {[%emt 0:00:02]} 42. Ba3 {[%emt 0:00:02]} Ba4 {[%emt 0:00:02]} 43. c4 {[%emt 0:00:16]} Bb3 {[%emt 0:00:04]} 44. c5 {[%emt 0:00:30]} Ba4 {[%emt 0:00:01]} 45. Bb2 {[%emt 0:00:27]} Bb5 {[%emt 0:00:10]} 46. Ke3 {[%emt 0:00:12]} Kd5 {[%emt 0:00:02]} 47. Ba3 {[%emt 0:00:02]} Kc4 {[%emt 0:00:08]} 48. Kd2 {[%emt 0:00:01]} Kb3 {[%emt 0:00:10]} 49. Bc1 {[%emt 0:00:01]} Kb4 {[%emt 0:00:11]} 50. Kc2 {[%emt 0:00:10]} Kxc5 {[%emt 0:00:08]} 51. Ba3+ {[%emt 0:00:29]} Kc4 {[%emt 0:00:04]} 52. Kd2 {[%emt 0:00:05]} Bd7 {[%emt 0:00:08]} 53. Kc2 {[%emt 0:00:12]} b5 {[%emt 0:00:05]} 54. Kd2 {[%emt 0:00:01]} b4 {[%emt 0:00:14]} 55. Bb2 {[%emt 0:00:01]} a4 {[%emt 0:00:07]} 56. Be5 {[%emt 0:00:08]} a3 {[%emt 0:00:06]} 57. Bf6 {[%emt 0:00:03]} b3 {[%emt 0:00:07]} 58. Be5 {[%emt 0:00:01]} b2 {[%emt 0:00:14]} 59. Kc2 {[%emt 0:00:01]} Ba4+ {[%emt 0:00:15]} 60. Kb1 {[%emt 0:00:01]} Kb3 {[%emt 0:00:22]} 0-1

[Event "EIRCC 2019"]
[Site "Tallinn"]
[Date "2019.12.05"]
[Round "5.14"]
[White "Timerkhanov, Alexander"]
[Black "Hjartarson, Johann"]
[Result "0-1"]
[ECO "A45"]
[WhiteElo "2363"]
[BlackElo "2534"]
[Annotator "ChessBase"]
[PlyCount "56"]
[EventDate "2019.12.05"]
[EventType "swiss"]
[EventCountry "EST"]
[SourceTitle "playchess.com"]
[Source "ChessBase"]
[SourceQuality "1"]
[TimeControl "900+10"]

1. d4 {[%emt 0:00:00]} Nf6 {[%emt 0:00:00]} 2. Bg5 {[%emt 0:00:00]} g6 {[%emt 0:00:05]} 3. Bxf6 {[%emt 0:00:00]} exf6 {[%emt 0:00:02]} 4. e3 {[%emt 0:00:00]} Bg7 {[%emt 0:00:12]} 5. Bd3 {[%emt 0:00:19]} f5 {[%emt 0:00:08]} 6. Nd2 {[%emt 0:00:09]} O-O {[%emt 0:00:06]} 7. Qf3 {[%emt 0:00:14]} d6 {[%emt 0:00:18]} 8. Ne2 {[%emt 0:00:15]} Nd7 {[%emt 0:00:04]} 9. h3 {[%emt 0:00:12]} Nf6 {[%emt 0:00:04]} 10. O-O-O {[%emt 0:00:18]} c5 {[%emt 0:00:51]} 11. c3 {[%emt 0:00:03]} Be6 {[%emt 0:00:27]} 12. Kb1 {[%emt 0:01:07]} Bd5 {[%emt 0:00:26]} 13. Qg3 {[%emt 0:00:03]} Qa5 {[%emt 0:00:55]} 14. Nc4 {[%emt 0:00:32]} Bxc4 {[%emt 0:00:17]} 15. Bxc4 {[%emt 0:00:02]} b5 {[%emt 0:00:45]} 16. Bd3 {[%emt 0:00:03]} c4 {[%emt 0:00:17]} 17. Bc2 {[%emt 0:00:01]} Qb6 {[%emt 0:00:10]} 18. Ka1 {[%emt 0:00:44]} a5 {[%emt 0:00:11]} 19. Qf3 {[%emt 0:01:12]} b4 {[%emt 0:00:26]} 20. Nf4 {[%emt 0:00:38]} Rfb8 {[%emt 0:04:27]} 21. Rb1 {[%emt 0:00:31]} b3 {[%emt 0:00:21]} 22. axb3 {[%emt 0:01:43]} cxb3 {[%emt 0:00:04]} 23. Bd3 {[%emt 0:00:02]} a4 {[%emt 0:00:20]} 24. Nd5 {[%emt 0:00:58]} Nxd5 {[%emt 0:00:48]} 25. Qxd5 {[%emt 0:00:01]} a3 {[%emt 0:01:34]} 26. Bc4 {[%emt 0:03:28]} Rb7 {[%emt 0:00:10]} 27. bxa3 {[%emt 0:02:14]} b2+ {[%emt 0:00:06]} 28. Ka2 {[%emt 0:00:13]} Rxa3+ {[%emt 0:00:05]} 0-1

[Event "EIRCC 2019"]
[Site "Tallinn"]
[Date "2019.12.05"]
[Round "5.15"]
[White "Putka, Verners"]
[Black "Belyakov, Bogdan"]
[Result "0-1"]
[ECO "E63"]
[WhiteElo "2358"]
[BlackElo "2520"]
[Annotator "ChessBase"]
[PlyCount "74"]
[EventDate "2019.12.05"]
[EventType "swiss"]
[EventCountry "EST"]
[SourceTitle "playchess.com"]
[Source "ChessBase"]
[SourceQuality "1"]
[TimeControl "900+10"]

1. d4 {[%emt 0:00:00]} Nf6 {[%emt 0:00:00]} 2. Nf3 {[%emt 0:00:00]} g6 {[%emt 0:00:00]} 3. g3 {[%emt 0:00:00]} Bg7 {[%emt 0:00:00]} 4. Bg2 {[%emt 0:00:00]} O-O {[%emt 0:00:00]} 5. O-O {[%emt 0:00:00]} d6 {[%emt 0:00:05]} 6. c4 {[%emt 0:00:03]} Nc6 {[%emt 0:00:02]} 7. Nc3 {[%emt 0:00:03]} a6 {[%emt 0:00:02]} 8. b3 {[%emt 0:00:05]} Rb8 {[%emt 0:00:08]} 9. Bb2 {[%emt 0:00:02]} b5 {[%emt 0:00:03]} 10. cxb5 {[%emt 0:00:04]} axb5 {[%emt 0:00:02]} 11. d5 {[%emt 0:00:19]} Na5 {[%emt 0:00:13]} 12. Nd4 {[%emt 0:00:08]} b4 {[%emt 0:00:22]} 13. Nb1 {[%emt 0:00:21]} e6 {[%emt 0:00:59]} 14. dxe6 {[%emt 0:01:23]} fxe6 {[%emt 0:00:08]} 15. Nd2 {[%emt 0:00:10]} c5 {[%emt 0:00:19]} 16. N4f3 {[%emt 0:00:11]} Qe7 {[%emt 0:01:29]} 17. a3 {[%emt 0:01:55]} bxa3 {[%emt 0:00:47]} 18. Rxa3 {[%emt 0:00:02]} Nc6 {[%emt 0:00:04]} 19. Nc4 {[%emt 0:01:42]} Rd8 {[%emt 0:00:15]} 20. Qa1 {[%emt 0:00:05]} e5 {[%emt 0:00:40]} 21. Rd1 {[%emt 0:00:39]} Bb7 {[%emt 0:01:00]} 22. e3 {[%emt 0:02:48]} Bf8 {[%emt 0:01:30]} 23. Ne1 {[%emt 0:01:04]} Ra8 {[%emt 0:00:48]} 24. Rxa8 {[%emt 0:01:41]} Rxa8 {[%emt 0:00:07]} 25. Qc1 {[%emt 0:00:11]} Rd8 {[%emt 0:00:22]} 26. f4 {[%emt 0:01:17]} exf4 {[%emt 0:00:22]} 27. exf4 {[%emt 0:00:23]} Nd4 {[%emt 0:00:34]} 28. Bxd4 {[%emt 0:00:08]} cxd4 {[%emt 0:00:02]} 29. Nf3 {[%emt 0:00:57]} Rc8 {[%emt 0:02:58]} 30. Qd2 {[%emt 0:00:08]} Ne4 {[%emt 0:00:19]} 31. Qxd4 {[%emt 0:00:51]} d5 {[%emt 0:00:16]} 32. Ne3 {[%emt 0:01:28]} Qa3 {[%emt 0:01:38]} 33. Bh3 {[%emt 0:01:02]} Re8 {[%emt 0:00:41]} 34. Kg2 {[%emt 0:01:10]} Bc5 {[%emt 0:00:24]} 35. Qd3 {[%emt 0:00:02]} Nf2 {[%emt 0:00:05]} 36. Nc2 {[%emt 0:00:14]} Nxd3 {[%emt 0:00:43]} 37. Nxa3 {[%emt 0:00:03]} Re2+ {[%emt 0:00:02]} 0-1

[Event "EIRCC 2019"]
[Site "Tallinn"]
[Date "2019.12.05"]
[Round "5.16"]
[White "Chernyak, Viktoria"]
[Black "Lobanov, Sergei"]
[Result "0-1"]
[ECO "A20"]
[WhiteElo "2233"]
[BlackElo "2483"]
[Annotator "ChessBase"]
[PlyCount "118"]
[EventDate "2019.12.05"]
[EventType "swiss"]
[EventCountry "EST"]
[SourceTitle "playchess.com"]
[Source "ChessBase"]
[SourceQuality "1"]
[TimeControl "900+10"]

1. c4 {[%emt 0:00:00]} e5 {[%emt 0:00:00]} 2. g3 {[%emt 0:00:00]} Nf6 {[%emt 0:00:00]} 3. Bg2 {[%emt 0:00:00]} c6 {[%emt 0:00:04]} 4. d4 {[%emt 0:00:00]} Bb4+ {[%emt 0:00:21]} 5. Bd2 {[%emt 0:00:21]} Qe7 {[%emt 0:00:02]} 6. dxe5 {[%emt 0:00:09]} Bxd2+ {[%emt 0:00:48]} 7. Qxd2 {[%emt 0:00:09]} Qxe5 {[%emt 0:00:02]} 8. Nc3 {[%emt 0:00:47]} O-O {[%emt 0:00:15]} 9. Nf3 {[%emt 0:00:04]} Qe7 {[%emt 0:00:41]} 10. O-O {[%emt 0:00:04]} Na6 {[%emt 0:00:18]} 11. Rad1 {[%emt 0:00:49]} Nc5 {[%emt 0:00:31]} 12. Nd4 {[%emt 0:00:50]} d6 {[%emt 0:00:42]} 13. Nb3 {[%emt 0:01:14]} Nxb3 {[%emt 0:02:22]} 14. axb3 {[%emt 0:00:01]} Rd8 {[%emt 0:00:02]} 15. e4 {[%emt 0:00:12]} Ne8 {[%emt 0:01:20]} 16. h3 {[%emt 0:00:28]} Be6 {[%emt 0:00:25]} 17. Kh2 {[%emt 0:00:04]} f6 {[%emt 0:00:12]} 18. f4 {[%emt 0:00:29]} Bf7 {[%emt 0:00:05]} 19. Qf2 {[%emt 0:00:04]} Nc7 {[%emt 0:00:08]} 20. Rfe1 {[%emt 0:01:08]} Na6 {[%emt 0:01:10]} 21. Ne2 {[%emt 0:01:10]} Nc5 {[%emt 0:00:36]} 22. Nd4 {[%emt 0:00:04]} Qc7 {[%emt 0:01:12]} 23. Qc2 {[%emt 0:01:08]} a5 {[%emt 0:00:09]} 24. Re3 {[%emt 0:00:49]} Rd7 {[%emt 0:00:26]} 25. h4 {[%emt 0:01:15]} Bh5 {[%emt 0:00:10]} 26. Rde1 {[%emt 0:00:05]} Bg4 {[%emt 0:00:07]} 27. Qf2 {[%emt 0:01:16]} Re8 {[%emt 0:01:19]} 28. Ne2 {[%emt 0:01:09]} Rde7 {[%emt 0:00:28]} 29. Nd4 {[%emt 0:00:13]} Qb6 {[%emt 0:01:26]} 30. Qd2 {[%emt 0:00:12]} Qb4 {[%emt 0:00:52]} 31. Qc1 {[%emt 0:01:40]} Kf8 {[%emt 0:00:59]} 32. Qc2 {[%emt 0:01:37]} Kg8 {[%emt 0:00:01]} 33. Qc1 {[%emt 0:00:01]} h6 {[%emt 0:00:23]} 34. Qc2 {[%emt 0:00:23]} Kh8 {[%emt 0:00:08]} 35. Qc1 {[%emt 0:00:02]} Kh7 {[%emt 0:00:04]} 36. Qc2 {[%emt 0:00:02]} Kg8 {[%emt 0:00:00]} 37. Qc1 {[%emt 0:00:00]} Kh7 {[%emt 0:01:06]} 38. Qc2 {[%emt 0:00:01]} Kg8 {[%emt 0:00:14]} 39. Qc1 {[%emt 0:00:01]} f5 {[%emt 0:00:19]} 40. e5 {[%emt 0:01:20]} dxe5 {[%emt 0:00:01]} 41. fxe5 {[%emt 0:00:03]} Rd8 {[%emt 0:00:10]} 42. Qc3 {[%emt 0:00:33]} Ne6 {[%emt 0:00:52]} 43. Nf3 {[%emt 0:00:40]} Red7 {[%emt 0:00:06]} 44. R1e2 {[%emt 0:01:02]} Rd1 {[%emt 0:00:07]} 45. Rf2 {[%emt 0:00:05]} Qc5 {[%emt 0:00:27]} 46. Rfe2 {[%emt 0:00:25]} f4 {[%emt 0:00:30]} 47. gxf4 {[%emt 0:00:16]} Qf8 {[%emt 0:00:08]} 48. f5 {[%emt 0:00:22]} Qxf5 {[%emt 0:00:04]} 49. Re1 {[%emt 0:00:09]} R1d3 {[%emt 0:00:17]} 50. Qc1 {[%emt 0:00:05]} Nf4 {[%emt 0:00:08]} 51. Bh1 {[%emt 0:00:06]} Bxf3 {[%emt 0:00:17]} 52. Bxf3 {[%emt 0:00:05]} Qh3+ {[%emt 0:00:08]} 53. Kg1 {[%emt 0:00:01]} Qg3+ {[%emt 0:00:01]} 54. Kf1 {[%emt 0:00:08]} Qxh4 {[%emt 0:00:10]} 55. e6 {[%emt 0:00:09]} Nxe6 {[%emt 0:00:11]} 56. Bd5 {[%emt 0:00:36]} cxd5 {[%emt 0:00:48]} 57. Rxd3 Rf8+ 58. Ke2 {[%emt 0:00:09]} Rf2+ {[%emt 0:00:04]} 59. Kd1 {[%emt 0:00:01]} Qg4+ {[%emt 0:00:01]} 0-1